fUSD/lending_fUSD_20260427
["ID","MTS","AMOUNT","RATE_DAILY","PERIOD"]
[421237705,1777286063874,500.0,0.00032876,120]
[421237706,1777286064808,500.0,0.00032876,120]
[421237707,1777286067539,500.0,0.00032876,120]
[421237708,1777286067837,907.87,0.00032876,120]
[421237709,1777286069355,612.42,0.00032876,120]
[421237710,1777286069457,1184.0,0.00032876,120]
[421237711,1777286069637,500.0,0.00032876,120]
[421237712,1777286069727,2122.18,0.00032876,120]
[421237713,1777286070109,500.0,0.00032876,120]
[421237714,1777286071264,500.0,0.00032876,120]
[421237715,1777286071403,500.0,0.00032876,120]
[421237716,1777286072236,500.0,0.00032876,120]
[421237717,1777286072290,609.73,0.00032876,120]
[421237718,1777286073165,500.0,0.00032876,120]
[421237719,1777286073594,500.0,0.00032876,120]
[421237720,1777286074866,1817.76,0.00032876,120]
[421237721,1777286075075,651.19,0.00032876,120]
[421237722,1777286075449,500.0,0.00032876,120]
[421237723,1777286077377,500.0,0.00032876,120]
[421237724,1777286077566,500.0,0.00032876,120]
[421237725,1777286078345,863.19,0.00032876,120]
[421237726,1777286078532,500.0,0.00032876,120]
[421237727,1777286078723,500.0,0.00032876,120]
[421237728,1777286079189,630.72,0.00032876,120]
[421237729,1777286079384,512.74,0.00032876,120]
[421237730,1777286080611,500.0,0.00032876,120]
[421237731,1777286083734,773.26,0.00032876,120]
[421237732,1777286085013,500.0,0.00032876,120]
[421237733,1777286085522,500.0,0.00032876,120]
[421237734,1777286085707,976.95,0.00032876,120]
[421237735,1777286085870,619.15,0.00032876,120]
[421237736,1777286087965,500.0,0.00032876,120]
[421237737,1777286089652,863.36,0.00032876,120]
[421237738,1777286091959,579.2666791,0.00032876,120]
[421237739,1777286092017,589.75,0.00032876,120]
[421237740,1777286092072,500.0,0.00032876,120]
[421237741,1777286092251,959.83,0.00032876,120]
[421237742,1777286094153,500.0,0.00032876,120]
[421237743,1777286094924,500.0,0.00032876,120]
[421237744,1777286095430,500.0,0.00032876,120]
[421237745,1777286095534,500.0,0.00032876,120]
[421237746,1777286096254,1686.84,0.00032876,120]
[421237747,1777286097284,500.0,0.00032876,120]
[421237748,1777286097803,1500.0,0.00032876,120]
[421237749,1777286098936,599.06,0.00032876,120]
[421237750,1777286100870,3312.63,0.00032876,120]
[421237751,1777286101454,500.0,0.00032876,120]
[421237752,1777286102031,681.45,0.00032876,120]
[421237753,1777286103566,500.0,0.00032876,120]
[421237754,1777286103831,936.46,0.00032876,120]
[421237755,1777286104293,500.0,0.00032876,120]
[421237756,1777286105911,500.0,0.00032876,120]
[421237757,1777286105977,533.0,0.00032876,120]
[421237758,1777286109547,500.0,0.00032876,120]
[421237759,1777286111142,623.6,0.00032876,120]
[421237760,1777286111580,640.83,0.00032876,120]
[421237761,1777286112985,500.0,0.00032876,120]
[421237762,1777286113174,500.0,0.00032876,120]
[421237763,1777286113891,908.33,0.00032876,120]
[421237764,1777286116342,459.45900422,0.00032876,120]
[421237765,1777286116532,500.0,0.00032876,120]
[421237766,1777286117352,1344.73,0.00032876,120]
[421237767,1777286117841,729.22,0.00032876,120]
[421237768,1777286118300,500.0,0.00032876,120]
[421237769,1777286118425,500.0,0.00032876,120]
[421237770,1777286118541,500.0,0.00032876,120]
[421237771,1777286120989,500.0,0.00032876,120]
[421237772,1777286121418,500.0,0.00032876,120]
[421237773,1777286121944,500.0,0.00032876,120]
[421237774,1777286122047,519.4,0.00032876,120]
[421237775,1777286123273,500.0,0.00032876,120]
[421237776,1777286124271,500.0,0.00032876,120]
[421237777,1777286124654,500.0,0.00032876,120]
[421237778,1777286125541,1137.61,0.00032876,120]
[421237779,1777286125616,372.83721838,0.00032876,120]
[421237780,1777286125868,1211.95,0.00032876,120]
[421237781,1777286126137,652.18,0.00032876,120]
[421237782,1777286126497,565.53,0.00032876,120]
[421237783,1777286126664,1090.21,0.00032876,120]
[421237784,1777286126735,1281.67,0.00032876,120]
[421237785,1777286127679,2252.64,0.00032876,120]
[421237786,1777286127834,500.0,0.00032876,120]
[421237787,1777286128052,500.0,0.00032876,120]
[421237788,1777286130783,553.4,0.00032876,120]
[421237789,1777286131153,500.0,0.00032876,120]
[421237790,1777286131329,500.0,0.00032876,120]
[421237791,1777286131414,500.0,0.00032876,120]
[421237792,1777286131753,1941.46,0.00032876,120]
[421237793,1777286133795,500.0,0.00032876,120]
[421237794,1777286133970,421.0,0.00032877,120]
[421237795,1777286134490,500.0,0.00032876,120]
[421237796,1777286134825,715.07,0.00032876,120]
[421237797,1777286135076,629.1,0.00032876,120]
[421237798,1777286136577,345.60088544,0.00032876,120]
[421237799,1777286136905,500.0,0.00032876,120]
[421237800,1777286137352,500.0,0.00032876,120]
[421237801,1777286137647,937.4,0.00032876,120]
[421237802,1777286138785,646.93,0.00032876,120]
[421237803,1777286140144,347.49295878,0.00032876,120]
[421237804,1777286140690,500.0,0.00032876,120]
[421237805,1777286141478,500.0,0.00032876,120]
[421237806,1777286141869,500.0,0.00032876,120]
[421237807,1777286142050,500.0,0.00032876,120]
[421237808,1777286142387,938.55,0.00032876,120]
[421237809,1777286142915,300.0,0.0003072,120]
[421237810,1777286143164,300.0,0.0003072,120]
[421237811,1777286143288,500.0,0.00032876,120]
[421237812,1777286143412,300.0,0.0003168,120]
[421237813,1777286143503,335.89352794,0.00032876,120]
[421237814,1777286143673,300.0,0.0003168,120]
[421237815,1777286143989,300.0,0.0003264,120]
[421237816,1777286144053,1090.36,0.00032876,120]
[421237817,1777286144102,500.0,0.00032876,120]
[421237818,1777286144182,300.0,0.0003264,120]
[421237819,1777286144378,1647.26,0.00032876,120]
[421237820,1777286145795,500.0,0.00032876,120]
[421237821,1777286148511,634.95,0.00032876,120]
[421237822,1777286148853,500.0,0.00032876,120]
[421237823,1777286148922,521.34,0.00032876,120]
[421237824,1777286150159,356.0,0.0003287,120]
[421237825,1777286150373,500.0,0.00032876,120]
[421237826,1777286150849,11959.87,0.00032876,120]
[421237827,1777286151136,500.0,0.00032876,120]
[421237828,1777286152310,395.0,0.0003287,120]
[421237829,1777286152750,3473.86,0.00032876,120]
[421237830,1777286153050,500.0,0.00032876,120]
[421237831,1777286153435,500.0,0.00032876,120]
[421237832,1777286153551,437.44324971,0.00032876,120]
[421237833,1777286155668,500.0,0.00032876,120]
[421237834,1777286156495,500.0,0.00032876,120]
[421237835,1777286158175,898.34,0.00032876,120]
[421237836,1777286158989,500.0,0.00032876,120]
[421237837,1777286159674,382.3156974,0.00032876,120]
[421237838,1777286159756,500.0,0.00032876,120]
[421237839,1777286159977,1011.81,0.00032876,120]
[421237840,1777286160770,242.1496279,0.00032876,120]
[421237841,1777286161515,598.34,0.00032876,120]
[421237842,1777286163031,472.24320241,0.00032876,120]
[421237843,1777286163605,358.51730664,0.00032876,120]
[421237844,1777286164630,500.0,0.00032876,120]
[421237845,1777286165588,500.0,0.00032876,120]
[421237846,1777286165823,500.0,0.00032876,120]
[421237847,1777286166031,339.19800796,0.00032876,120]
[421237848,1777286167182,528.14,0.00032876,120]
[421237849,1777286167242,500.0,0.00032876,120]
[421237850,1777286168255,500.0,0.00032876,120]
[421237851,1777286169116,280.9921982,0.00032876,120]
[421237852,1777286169252,217.72702965,0.00032876,120]
[421237853,1777286169443,238.66882404,0.00032876,120]
[421237854,1777286170222,500.0,0.00032876,120]
[421237855,1777286170270,500.0,0.00032876,120]
[421237856,1777286170432,571.55756549,0.00032876,120]
[421237857,1777286170976,5345.89,0.00032876,120]
[421237858,1777286171234,1072.38,0.00032876,120]
[421237859,1777286171286,500.0,0.00032876,120]
[421237860,1777286173916,500.0,0.00032876,120]
[421237861,1777286174256,500.0,0.00032876,120]
[421237862,1777286174300,500.0,0.00032876,120]
[421237864,1777286174931,5357.64,0.00032876,120]
[421237866,1777286176660,500.0,0.00032876,120]
[421237867,1777286176882,500.0,0.00032876,120]
[421237868,1777286178097,999.36,0.00032876,120]
[421237869,1777286178142,1314.31,0.00032876,120]
[421237870,1777286178343,500.0,0.00032876,120]
[421237871,1777286178959,703.47,0.00032876,120]
[421237872,1777286180248,500.0,0.00032876,120]
[421237873,1777286180353,500.0,0.00032876,120]
[421237874,1777286180427,5967.24,0.00032876,120]
[421237875,1777286181675,607.6083791,0.00032876,120]
[421237876,1777286182356,786.47,0.00032876,120]
[421237877,1777286183573,361.75250998,0.00032876,120]
[421237878,1777286183714,500.0,0.00032876,120]
[421237879,1777286183793,500.0,0.00032876,120]
[421237880,1777286184754,569.39,0.00032876,120]
[421237881,1777286185086,500.0,0.00032876,120]
[421237882,1777286185136,500.0,0.00032876,120]
[421237883,1777286185293,500.0,0.00032876,120]
[421237884,1777286185479,545.26808826,0.00032876,120]
[421237885,1777286185551,500.0,0.00032876,120]
[421237886,1777286186142,500.0,0.00032876,120]
[421237887,1777286186253,599.42,0.00032876,120]
[421237888,1777286186726,500.0,0.00032876,120]
[421237889,1777286186787,500.0,0.00032876,120]
[421237890,1777286188815,287.06784638,0.00032876,120]
[421237891,1777286188903,500.0,0.00032876,120]
[421237892,1777286188953,500.0,0.00032876,120]
[421237893,1777286190136,283.69091617,0.00032876,120]
[421237894,1777286190598,500.0,0.00032876,120]
[421237895,1777286191313,290.467581,0.00032876,120]
[421237896,1777286191456,500.0,0.00032876,120]
[421237897,1777286192594,597.30748264,0.00032876,120]
[421237898,1777286192736,500.0,0.00032876,120]
[421237899,1777286193251,435.50982894,0.00032876,120]
[421237900,1777286193427,413.73120647,0.00032876,120]
[421237901,1777286195292,274.23961337,0.00032876,120]
[421237902,1777286195703,323.47555809,0.00032876,120]
[421237903,1777286196298,500.0,0.00032876,120]
[421237904,1777286196604,500.0,0.00032876,120]
[421237905,1777286196872,648.1,0.00032876,120]
[421237906,1777286197263,787.64,0.00032876,120]
[421237907,1777286197301,500.0,0.00032876,120]
[421237908,1777286197348,457.07911681,0.00032876,120]
[421237909,1777286197578,500.0,0.00032876,120]
[421237910,1777286199407,516.81,0.00032876,120]
[421237911,1777286199645,500.0,0.00032876,120]
[421237912,1777286199796,607.75,0.00032876,120]
[421237913,1777286200269,2357.31,0.00032876,120]
[421237914,1777286200984,722.01,0.00032876,120]
[421237915,1777286201367,500.0,0.00032876,120]
[421237916,1777286203125,1276.82,0.00032876,120]
[421237917,1777286203167,1639.96,0.00032876,120]
[421237918,1777286203531,500.0,0.00032876,120]
[421237919,1777286203828,500.0,0.00032876,120]
[421237920,1777286204055,500.0,0.00032876,120]
[421237921,1777286204251,500.0,0.00032876,120]
[421237922,1777286204335,500.0,0.00032876,120]
[421237923,1777286206054,500.0,0.00032876,120]
[421237924,1777286206109,474.73730606,0.00032876,120]
[421237925,1777286206716,500.0,0.00032876,120]
[421237926,1777286207219,500.0,0.00032876,120]
[421237927,1777286207276,500.0,0.00032876,120]
[421237928,1777286207572,500.0,0.00032876,120]
[421237929,1777286208697,500.0,0.00032876,120]
[421237930,1777286208780,513.09760481,0.00032876,120]
[421237931,1777286208842,500.0,0.00032876,120]
[421237932,1777286208890,500.0,0.00032876,120]
[421237933,1777286209239,820.2031528,0.0003287,120]
[421237934,1777286209346,500.0,0.00032876,120]
[421237935,1777286209391,520.39905785,0.00032876,120]
[421237936,1777286210353,575.12063889,0.00032876,120]
[421237937,1777286211824,500.0,0.00032876,120]
[421237938,1777286212179,263.66834198,0.00032876,120]
[421237939,1777286212368,2096.71,0.00032876,120]
[421237940,1777286212491,622.22242868,0.00032876,120]
[421237941,1777286213385,503.61513246,0.00032876,120]
[421237942,1777286214809,340.9633819,0.00032876,120]
[421237943,1777286215043,327.81219545,0.00032876,120]
[421237944,1777286215143,500.0,0.00032876,120]
[421237945,1777286215180,503.49793406,0.00032876,120]
[421237946,1777286217100,151.50053501,0.00032876,120]
[421237947,1777286217287,500.0,0.00032876,120]
[421237948,1777286217582,511.39,0.00032876,120]
[421237949,1777286217647,500.0,0.00032876,120]
[421237950,1777286217819,260.17593755,0.00032876,120]
[421237951,1777286218144,532.67297285,0.00032876,120]
[421237952,1777286219000,453.25480889,0.00032876,120]
[421237953,1777286219173,527.75,0.00032876,120]
[421237954,1777286220033,214.41343357,0.00032876,120]
[421237955,1777286220569,500.0,0.00032876,120]
[421237956,1777286220809,500.0,0.00032876,120]
[421237957,1777286221152,855.85,0.00032876,120]
[421237958,1777286221410,500.0,0.00032876,120]
[421237959,1777286221787,500.0,0.00032876,120]
[421237960,1777286221877,287.60048979,0.00032876,120]
[421237961,1777286223543,500.0,0.00032876,120]
[421237962,1777286223587,435.35445583,0.00032876,120]
[421237963,1777286223656,465.29046658,0.00032876,120]
[421237964,1777286224012,500.0,0.00032876,120]
[421237965,1777286224224,273.61820374,0.00032876,120]
[421237966,1777286225445,1639.95,0.00032876,120]
[421237967,1777286225490,566.20348568,0.00032876,120]
[421237968,1777286225651,500.0,0.00032876,120]
[421237969,1777286227550,500.0,0.00032876,120]
[421237970,1777286227605,500.0,0.00032876,120]
[421237971,1777286227808,179.13685268,0.00032876,120]
[421237972,1777286228307,500.0,0.00032876,120]
[421237973,1777286228345,500.0,0.00032876,120]
[421237974,1777286228413,663.98,0.00032876,120]
[421237975,1777286228456,231.75577415,0.00032876,120]
[421237976,1777286229374,500.0,0.00032876,120]
[421237977,1777286229441,500.0,0.00032876,120]
[421237978,1777286229595,752.81,0.00032876,120]
[421237979,1777286229838,500.0,0.00032876,120]
[421237980,1777286230245,918.52,0.00032876,120]
[421237981,1777286232903,696.22,0.00032876,120]
[421237982,1777286233099,1509.86,0.00032876,120]
[421237983,1777286233224,500.0,0.00032876,120]
[421237984,1777286233420,202.6202437,0.00032876,120]
[421237985,1777286233723,507.38695828,0.00032876,120]
[421237986,1777286235093,185.66937447,0.00032876,120]
[421237987,1777286235470,500.0,0.00032876,120]
[421237988,1777286236062,247.03576089,0.00032876,120]
[421237989,1777286236401,618.78,0.00032876,120]
[421237990,1777286236940,512.84752258,0.00032876,120]
[421237991,1777286237149,501.43105417,0.00032876,120]
[421237992,1777286238849,978.81,0.00032876,120]
[421237993,1777286238891,865.89,0.00032876,120]
[421237994,1777286240499,506.11500034,0.00032876,120]
[421237995,1777286240597,501.65344693,0.00032876,120]
[421237996,1777286241502,335.34379982,0.00032876,120]
[421237997,1777286241685,500.0,0.00032876,120]
[421237998,1777286242139,500.0,0.00032876,120]
[421237999,1777286242383,1446.95,0.00032876,120]
[421238000,1777286242762,500.0,0.00032876,120]
[421238001,1777286243300,500.0,0.00032876,120]
[421238002,1777286243902,964.96,0.00032876,120]
[421238003,1777286244743,874.59,0.00032876,120]
[421238004,1777286244967,500.0,0.00032876,120]
[421238005,1777286245149,500.44423539,0.00032876,120]
[421238006,1777286245436,519.14071594,0.00032876,120]
[421238007,1777286245477,500.0,0.00032876,120]
[421238008,1777286245841,431.80618844,0.00032876,120]
[421238009,1777286246024,500.0,0.00032876,120]
[421238010,1777286246897,500.0,0.00032876,120]
[421238011,1777286249030,255.57727126,0.00032876,120]
[421238012,1777286249150,500.0,0.00032876,120]
[421238013,1777286250213,370.11182149,0.00032876,120]
[421238014,1777286250372,843.64,0.00032876,120]
[421238015,1777286251346,1000.0,0.00032876,120]
[421238016,1777286252045,1446.23,0.00032877,120]
[421238017,1777286252709,505.56670659,0.00032876,120]
[421238018,1777286252752,213.12328971,0.00032876,120]
[421238019,1777286252831,1013.57,0.00032876,120]
[421238020,1777286254848,500.0,0.00032876,120]
[421238021,1777286255004,500.0,0.00032876,120]
[421238022,1777286255202,500.0,0.00032876,120]
[421238023,1777286255475,151.35768396,0.00032876,120]
[421238024,1777286255871,1856.97,0.00032876,120]
[421238025,1777286256773,500.0,0.00032876,120]
[421238026,1777286256829,500.0,0.00032876,120]
[421238027,1777286257645,479.61215692,0.00032876,120]
[421238028,1777286257915,500.0,0.00032876,120]
[421238029,1777286258646,524.77364731,0.00032876,120]
[421238030,1777286259728,321.35186945,0.00032876,120]
[421238031,1777286259928,619.07158145,0.00032876,120]
[421238032,1777286260448,981.03,0.00032876,120]
[421238033,1777286260487,272.30375965,0.00032876,120]
[421238034,1777286261304,634.07826331,0.00032876,120]
[421238035,1777286261647,993.81,0.00032876,120]
[421238036,1777286261842,500.0,0.00032876,120]
[421238037,1777286262111,160.88436816,0.00032876,120]
[421238038,1777286262282,500.0,0.00032876,120]
[421238039,1777286262892,500.0,0.00032876,120]
[421238040,1777286262931,529.41,0.00032876,120]
[421238041,1777286263023,500.0,0.00032876,120]
[421238042,1777286263085,500.0,0.00032876,120]
[421238043,1777286263687,500.0,0.00032876,120]
[421238044,1777286263732,248.1456633,0.00032876,120]
[421238045,1777286263947,614.50192251,0.00032876,120]
[421238046,1777286264004,842.62,0.00032876,120]
[421238047,1777286267255,500.0,0.00032876,120]
[421238048,1777286267317,500.0,0.00032876,120]
[421238049,1777286268931,530.0,0.0003287,120]
[421238050,1777286268988,182.11607291,0.00032876,120]
[421238051,1777286269512,500.0,0.00032876,120]
[421238052,1777286270343,626.19859066,0.00032876,120]
[421238053,1777286270415,263.84518231,0.00032876,120]
[421238054,1777286270463,270.24766159,0.00032876,120]
[421238055,1777286270500,500.0,0.00032876,120]
[421238056,1777286270957,339.91315918,0.0003287,120]
[421238057,1777286271870,243.54250855,0.00032876,120]
[421238058,1777286272183,11594.49,0.00032876,120]
[421238059,1777286273172,502.23889689,0.00032876,120]
[421238060,1777286273776,401.99018263,0.00032876,120]
[421238061,1777286273986,500.0,0.00032876,120]
[421238062,1777286274039,500.0,0.00032876,120]
[421238063,1777286274532,500.0,0.00032876,120]
[421238064,1777286274581,525.28411823,0.00032876,120]
[421238065,1777286274871,525.28411823,0.00032876,120]
[421238066,1777286275162,525.28411823,0.00032876,120]
[421238067,1777286275446,525.28411823,0.00032876,120]
[421238068,1777286275490,500.0,0.00032876,120]
[421238069,1777286276002,1077.32,0.00032876,120]
[421238070,1777286276550,500.0,0.00032876,120]
[421238071,1777286277160,1076.1,0.00032876,120]
[421238072,1777286277530,1734.02,0.00032876,120]
[421238073,1777286277900,500.0,0.00032876,120]
[421238074,1777286279474,500.16382748,0.00032876,120]
[421238075,1777286279565,521.6286951,0.00032876,120]
[421238076,1777286279874,563.92040273,0.00032876,120]
[421238077,1777286281104,382.49773259,0.00032876,120]
[421238078,1777286281554,604.92185871,0.00032876,120]
[421238079,1777286281975,1000.0,0.00032876,120]
[421238080,1777286282255,996.4,0.00032876,120]
[421238081,1777286282293,1713.82,0.00032876,120]
[421238082,1777286283043,500.0,0.00032876,120]
[421238083,1777286283449,251.4286544,0.00032876,120]
[421238084,1777286283492,500.0,0.00032876,120]
[421238085,1777286284656,765.4,0.00032876,120]
[421238086,1777286284978,949.83,0.00032876,120]
[421238087,1777286285027,500.0,0.00032876,120]
[421238088,1777286285253,599.76,0.00032876,120]
[421238089,1777286285783,500.0,0.00032876,120]
[421238090,1777286288468,642.80320362,0.00032876,120]
[421238091,1777286289165,992.82,0.00032876,120]
[421238092,1777286289507,500.0,0.00032876,120]
[421238093,1777286290739,500.0,0.00032876,120]
[421238094,1777286292704,500.0,0.00032876,120]
[421238095,1777286292826,286.9121141,0.00032876,120]
[421238096,1777286292952,500.0,0.00032876,120]
[421238097,1777286293542,500.0,0.00032876,120]
[421238098,1777286294321,500.0,0.00032876,120]
[421238099,1777286294690,972.42,0.00032876,120]
[421238100,1777286294735,500.0,0.00032876,120]
[421238101,1777286296349,8500.0,0.00032876,120]
[421238102,1777286297028,967.57,0.00032876,120]
[421238103,1777286297206,500.0,0.00032876,120]
[421238104,1777286297329,500.0,0.00032876,120]
[421238105,1777286297375,500.0,0.00032876,120]
[421238106,1777286298521,500.0,0.00032876,120]
[421238107,1777286299511,500.0,0.00032876,120]
[421238108,1777286299677,237.20458167,0.00032876,120]
[421238109,1777286301334,215.95144981,0.00032876,120]
[421238110,1777286302707,626.41634718,0.00032876,120]
[421238111,1777286302786,392.31958186,0.00032876,120]
[421238112,1777286302837,647.04992914,0.00032876,120]
[421238113,1777286302885,500.0,0.00032876,120]
[421238114,1777286303465,500.0,0.00032876,120]
[421238115,1777286303521,500.0,0.00032876,120]
[421238116,1777286303589,500.0,0.00032876,120]
[421238117,1777286303659,731.92,0.00032876,120]
[421238118,1777286304864,812.99,0.00032876,120]
[421238119,1777286305256,453.93636034,0.00032876,120]
[421238120,1777286305371,563.65510205,0.00032876,120]
[421238121,1777286305464,1319.91,0.00032876,120]
[421238122,1777286305506,162.45039999,0.00032876,120]
[421238123,1777286305547,500.0,0.00032876,120]
[421238124,1777286305597,559.35,0.00032876,120]
[421238125,1777286305642,500.0,0.00032876,120]
[421238126,1777286305779,1129.13,0.00032876,120]
[421238127,1777286307262,1706.39,0.00032876,120]
[421238128,1777286307440,597.5548025,0.00032876,120]
[421238129,1777286308547,500.0,0.00032876,120]
[421238130,1777286310008,594.91471636,0.00032876,120]
[421238131,1777286310422,500.0,0.00032876,120]
[421238132,1777286310493,611.76307982,0.00032876,120]
[421238133,1777286310804,328.68714532,0.00032876,120]
[421238134,1777286311867,500.0,0.00032876,120]
[421238135,1777286312123,500.0,0.00032876,120]
[421238136,1777286312209,500.0,0.00032876,120]
[421238137,1777286314126,629.97310889,0.00032876,120]
[421238138,1777286314572,500.0,0.00032876,120]
[421238139,1777286314709,500.0,0.00032876,120]
[421238140,1777286315220,500.0,0.00032876,120]
[421238141,1777286315976,500.0,0.00032876,120]
[421238142,1777286316127,500.0,0.00032876,120]
[421238143,1777286316381,501.32306081,0.00032876,120]
[421238144,1777286316545,500.0,0.00032876,120]
[421238145,1777286317666,323.50389272,0.00032876,120]
[421238146,1777286317737,500.0,0.00032876,120]
[421238147,1777286317834,496.31298783,0.00032876,120]
[421238148,1777286318283,548.17664089,0.00032876,120]
[421238149,1777286318543,500.0,0.00032876,120]
[421238150,1777286318845,500.0,0.00032876,120]
[421238151,1777286319474,500.0,0.00032876,120]
[421238152,1777286319758,500.0,0.00032876,120]
[421238153,1777286319926,500.0,0.00032876,120]
[421238154,1777286319964,4384.39,0.00032876,120]
[421238155,1777286320344,500.0,0.00032876,120]
[421238156,1777286320390,668.63,0.00032876,120]
[421238157,1777286321166,502.57053307,0.00032876,120]
[421238158,1777286321507,500.0,0.00032876,120]
[421238159,1777286322050,500.0,0.00032876,120]
[421238160,1777286322389,1000.0,0.00032876,120]
[421238161,1777286324143,176.0,0.0003287,120]
[421238162,1777286324373,431.32274758,0.00032876,120]
[421238163,1777286324605,912.87,0.00032876,120]
[421238164,1777286324716,500.0,0.00032876,120]
[421238165,1777286324963,500.0,0.00032876,120]
[421238166,1777286325389,500.0,0.00032876,120]
[421238167,1777286326956,501.77741859,0.00032876,120]
[421238168,1777286328280,500.0,0.00032876,120]
[421238169,1777286329914,1126.58,0.00032876,120]
[421238170,1777286330525,2310.82,0.00032876,120]
[421238171,1777286331613,500.0,0.00032876,120]
[421238172,1777286335906,500.0,0.00032876,120]
[421238173,1777286336276,501.74874345,0.00032876,120]
[421238174,1777286337079,951.83,0.00032876,120]
[421238175,1777286337413,1867.25,0.00032876,120]
[421238176,1777286337752,500.0,0.00032876,120]
[421238177,1777286338573,311.38792755,0.00032876,120]
[421238178,1777286338619,500.0,0.00032876,120]
[421238179,1777286338687,500.0,0.00032876,120]
[421238180,1777286338743,785.48,0.00032876,120]
[421238181,1777286339371,1093.1,0.00032876,120]
[421238182,1777286341493,500.0,0.00032876,120]
[421238183,1777286341553,500.0,0.00032876,120]
[421238184,1777286341932,380.0,0.000328,120]
[421238185,1777286345348,500.0,0.00032876,120]
[421238186,1777286346671,500.0,0.00032876,120]
[421238187,1777286346785,419.02152109,0.00032876,120]
[421238188,1777286347291,500.0,0.00032876,120]
[421238189,1777286348003,691.55,0.00032876,120]
[421238190,1777286348071,160.86920056,0.00032876,120]
[421238191,1777286348961,500.0,0.00032876,120]
[421238192,1777286349620,2630.66,0.00032876,120]
[421238193,1777286349814,500.0,0.00032876,120]
[421238194,1777286350210,500.0,0.00032876,120]
[421238195,1777286350513,506.85,0.00032876,120]
[421238196,1777286352158,459.36200406,0.00032876,120]
[421238197,1777286352758,500.0,0.00032876,120]
[421238198,1777286353329,356.96102202,0.00032876,120]
[421238199,1777286353567,316.17556973,0.00032876,120]
[421238200,1777286353946,500.0,0.00032876,120]
[421238201,1777286354397,814.85428176,0.000324,120]
[421238202,1777286354858,822.42,0.00032876,120]
[421238203,1777286354915,500.0,0.00032876,120]
[421238204,1777286354969,500.0,0.00032876,120]
[421238205,1777286355014,1288.7,0.00032876,120]
[421238206,1777286355294,182.2620201,0.00032876,120]